[Event "GER-chT Youth Countries 2020"]
[Site "Berlin"]
[Date "2020.10.01"]
[Round "3"]
[White "Schwartz, Oliver"]
[Black "Nguyen, Ha Thanh"]
[Result "0-1"]
[ECO "B33"]
[WhiteElo "1794"]
[BlackElo "2019"]
[Annotator "ChessBase"]
[PlyCount "104"]
[EventDate "2020.09.30"]
[EventType "team-tourn"]
[EventRounds "7"]
[EventCountry "GER"]
[SourceTitle "playchess.com"]
[Source "ChessBase"]
[SourceQuality "1"]
[TimeControl "30/5400+30:0"]

1. e4 {[%emt 0:00:00]} c5 {[%emt 0:00:00]} 2. Nf3 {[%emt 0:00:00]} Nc6 {[%emt 0:00:00]} 3. d4 {[%emt 0:00:00]} cxd4 {[%emt 0:00:00]} 4. Nxd4 {[%emt 0:00:00]} Nf6 {[%emt 0:00:09]} 5. Nc3 {[%emt 0:00:00]} e5 {[%emt 0:00:09]} 6. Ndb5 {[%emt 0:00:01]} d6 {[%emt 0:00:09]} 7. Bg5 {[%emt 0:00:15]} a6 {[%emt 0:00:20]} 8. Na3 {[%emt 0:00:12]} b5 {[%emt 0:00:11]} 9. Nd5 {[%emt 0:00:11]} Be7 {[%emt 0:00:26]} 10. Bxf6 {[%emt 0:00:10]} Bxf6 {[%emt 0:00:09]} 11. c3 {[%emt 0:00:44]} O-O {[%emt 0:00:30]} 12. Nc2 {[%emt 0:00:13]} Bg5 {[%emt 0:01:09]} 13. h4 {[%emt 0:02:10]} Bh6 {[%emt 0:02:38]} 14. g4 {[%emt 0:06:43]} Bf4 {[%emt 0:00:57]} 15. Qf3 {[%emt 0:05:37]} Be6 {[%emt 0:08:09]} 16. Nxf4 {[%emt 0:03:58]} exf4 {[%emt 0:00:26]} 17. Qxf4 {[%emt 0:00:28]} Ne5 {[%emt 0:00:30]} 18. Be2 {[%emt 0:04:27]} a5 {[%emt 0:08:29]} 19. Qg3 {[%emt 0:05:40]} Bc4 {[%emt 0:11:59]} 20. f4 {[%emt 0:04:27]} Nd7 {[%emt 0:02:53]} 21. Bf3 {[%emt 0:27:53]} Nc5 {[%emt 0:02:29]} 22. Kd2 {[%emt 0:10:21]} b4 {[%emt 0:04:47]} 23. Ne3 {[%emt 0:03:19]} bxc3+ {[%emt 0:01:10]} 24. bxc3 {[%emt 0:00:13]} Bd3 {[%emt 0:00:26]} 25. Rae1 {[%emt 0:08:32]} Rb8 {[%emt 0:01:22]} 26. Nd1 {[%emt 0:00:31]} Qb6 {[%emt 0:02:31]} 27. Re3 {[%emt 0:02:39]} Qb1 {[%emt 0:02:09]} 28. Rh2 {[%emt 0:00:49]} Bxe4 {[%emt 0:09:22]} 29. Rg2 {[%emt 0:04:07]} d5 {[%emt 0:04:13]} 30. g5 {[%emt 0:00:43]} Rfd8 {[%emt 0:04:21]} 31. Ke1 {[%emt 1:30:47]} d4 {[%emt 1:30:47]} 32. cxd4 {[%emt 0:00:21]} Rxd4 {[%emt 0:00:13]} 33. Kf2 {[%emt 0:03:18]} Bxf3 {[%emt 0:01:09]} 34. Qxf3 {[%emt 0:00:54]} Qxd1 {[%emt 0:00:09]} 35. Qxd1 {[%emt 0:01:43]} Rxd1 {[%emt 0:00:10]} 36. h5 {[%emt 0:00:54]} Rd2+ {[%emt 0:00:59]} 37. Kf3 {[%emt 0:00:17]} Rxg2 {[%emt 0:00:25]} 38. Kxg2 {[%emt 0:00:02]} Kf8 {[%emt 0:00:26]} 39. Kg3 {[%emt 0:00:30]} Rb2 {[%emt 0:01:00]} 40. Re5 {[%emt 0:00:44]} Rc2 {[%emt 0:03:05]} 41. Kg4 {[%emt 0:00:44]} Rc4 {[%emt 0:01:10]} 42. g6 {[%emt 0:02:37]} hxg6 {[%emt 0:01:12]} 43. hxg6 {[%emt 0:00:09]} Rxf4+ {[%emt 0:02:28]} 44. Kh5 {[%emt 0:03:23]} Rc4 {[%emt 0:07:42]} 45. Rd5 {[%emt 0:00:00]} f6 {[%emt 0:00:00]} 46. a4 {[%emt 0:00:00]} Ne4 {[%emt 0:00:00]} 47. Rd3 {[%emt 0:00:00]} Rxa4 {[%emt 0:00:00]} 48. Re3 {[%emt 0:00:00]} f5 {[%emt 0:00:00]} 49. Rb3 {[%emt 0:00:00]} Rb4 {[%emt 0:00:00]} 50. Rd3 {[%emt 0:00:00]} Ke7 {[%emt 0:00:00]} 51. Rf3 {[%emt 0:00:00]} Ke6 {[%emt 0:00:00]} 52. Rd3 {[%emt 0:00:00]} Nf6+ 0-1

[Event "GER-chT Youth Countries 2020"]
[Site "Berlin"]
[Date "2020.10.01"]
[Round "3"]
[White "Mundt, Alexandra"]
[Black "Bashylina, Luisa"]
[Result "1/2-1/2"]
[ECO "A05"]
[WhiteElo "1786"]
[BlackElo "2005"]
[Annotator "ChessBase"]
[PlyCount "91"]
[EventDate "2020.09.30"]
[EventType "team-tourn"]
[EventRounds "7"]
[EventCountry "GER"]
[SourceTitle "playchess.com"]
[Source "ChessBase"]
[SourceQuality "1"]
[TimeControl "30/5400+30:0"]

1. Nf3 {[%emt 0:00:00]} Nf6 {[%emt 0:00:00]} 2. g3 {[%emt 0:00:00]} d5 {[%emt 0:00:17]} 3. d4 {[%emt 0:00:01]} e6 {[%emt 0:02:22]} 4. Bg2 {[%emt 0:00:16]} Be7 {[%emt 0:01:22]} 5. O-O {[%emt 0:01:04]} O-O {[%emt 0:00:10]} 6. Nbd2 {[%emt 0:01:16]} b6 {[%emt 0:01:29]} 7. b3 {[%emt 0:00:55]} Bb7 {[%emt 0:00:31]} 8. Bb2 {[%emt 0:00:25]} Nbd7 {[%emt 0:03:36]} 9. e3 {[%emt 0:05:40]} Rc8 {[%emt 0:06:06]} 10. Rc1 {[%emt 0:06:21]} c5 {[%emt 0:06:29]} 11. c4 {[%emt 0:05:49]} h6 {[%emt 0:09:46]} 12. Re1 {[%emt 0:17:00]} Re8 {[%emt 0:01:36]} 13. Ne5 {[%emt 0:12:50]} Rc7 {[%emt 0:18:47]} 14. Ndf3 {[%emt 0:03:02]} cxd4 {[%emt 0:05:48]} 15. exd4 {[%emt 0:04:18]} Bb4 {[%emt 0:01:38]} 16. Nxd7 {[%emt 0:11:38]} Rxd7 {[%emt 0:02:25]} 17. Re2 {[%emt 0:02:00]} dxc4 {[%emt 0:03:23]} 18. Ne5 {[%emt 0:00:59]} Rc7 {[%emt 0:07:36]} 19. Bxb7 {[%emt 0:02:05]} Rxb7 {[%emt 0:00:23]} 20. Nc6 {[%emt 0:05:49]} Qd6 {[%emt 0:00:41]} 21. Nxb4 {[%emt 0:00:40]} Qxb4 {[%emt 0:00:03]} 22. Rxc4 {[%emt 0:00:05]} Qd6 {[%emt 0:00:23]} 23. Qc1 {[%emt 0:01:06]} Rd7 {[%emt 0:06:18]} 24. Ba3 {[%emt 0:08:48]} Qd5 {[%emt 0:00:28]} 25. Re5 {[%emt 0:02:15]} Qb7 {[%emt 0:00:46]} 26. Re2 {[%emt 0:00:33]} Red8 {[%emt 0:00:55]} 27. Bb2 {[%emt 0:03:41]} Nd5 {[%emt 0:03:14]} 28. Rec2 {[%emt 0:03:12]} Ne7 {[%emt 0:07:14]} 29. Rc7 {[%emt 0:00:26]} Qd5 {[%emt 0:00:20]} 30. Ba3 {[%emt 0:01:42]} Nf5 {[%emt 0:01:07]} 31. Rxd7 {[%emt 1:30:44]} Rxd7 {[%emt 1:31:28]} 32. Rc8+ {[%emt 0:00:39]} Kh7 {[%emt 0:00:24]} 33. Bb2 {[%emt 0:00:37]} Nxd4 {[%emt 0:01:03]} 34. Bxd4 {[%emt 0:00:02]} Qxd4 {[%emt 0:00:07]} 35. Qc2+ {[%emt 0:00:20]} g6 {[%emt 0:01:19]} 36. Rc7 {[%emt 0:00:47]} Qd6 37. Rxd7 {[%emt 0:00:44]} Qxd7 {[%emt 0:01:13]} 38. Qc3 {[%emt 0:00:36]} a5 {[%emt 0:02:31]} 39. Qe3 {[%emt 0:00:22]} Qd6 {[%emt 0:00:32]} 40. Qf3 {[%emt 0:00:28]} f5 {[%emt 0:03:14]} 41. Qb7+ {[%emt 0:00:00]} Kg8 {[%emt 0:00:00]} 42. Qc8+ {[%emt 0:00:00]} Kg7 {[%emt 0:00:00]} 43. Qb7+ {[%emt 0:00:00]} Kg8 {[%emt 0:00:00]} 44. Qc8+ {[%emt 0:00:00]} Kf7 {[%emt 0:00:00]} 45. Qh8 {[%emt 0:00:00]} Qf8 {[%emt 0:00:00]} 46. Qd4 {[%emt 0:00:00]} 1/2-1/2

[Event "GER-chT Youth Countries 2020"]
[Site "Berlin"]
[Date "2020.10.01"]
[Round "3"]
[White "Yue, Qizhou"]
[Black "Fock, Sana"]
[Result "1-0"]
[ECO "B23"]
[WhiteElo "1775"]
[BlackElo "1829"]
[Annotator "NA"]
[PlyCount "74"]
[EventDate "2020.09.30"]
[EventType "team-tourn"]
[EventRounds "7"]
[EventCountry "GER"]
[SourceTitle "playchess.com"]
[Source "ChessBase"]
[SourceQuality "1"]
[TimeControl "30/5400+30:0"]

1. e4 {[%emt 0:01:04]} c5 {[%emt 0:00:00]} 2. Nc3 {[%emt 0:00:34]} d6 {[%emt 0:00:00]} 3. f4 {[%emt 0:00:47]} Nc6 {[%emt 0:00:05]} 4. Bb5 {[%emt 0:06:52]} Bd7 {[%emt 0:03:29]} 5. Nf3 {[%emt 0:01:36]} e6 {[%emt 0:01:22]} 6. d3 {[%emt 0:00:39]} a6 {[%emt 0:00:16]} 7. Bxc6 {[%emt 0:00:21]} Bxc6 {[%emt 0:05:01]} 8. O-O {[%emt 0:07:30]} Nf6 {[%emt 0:09:35]} 9. Qe1 {[%emt 0:14:54]} Be7 {[%emt 0:13:53]} 10. e5 {[%emt 0:00:55]} dxe5 {[%emt 0:12:20]} 11. fxe5 {[%emt 0:11:05]} Nd5 {[%emt 0:07:36]} 12. Qg3 {[%emt 0:01:22]} Nxc3 {[%emt 0:14:53]} 13. bxc3 {[%emt 0:11:56]} Qd7 {[%emt 0:02:48]} 14. Ng5 {[%emt 0:03:10]} f6 {[%emt 0:00:20]} 15. exf6 {[%emt 0:02:17]} gxf6 {[%emt 0:04:32]} 16. Nxh7 Rxh7 {[%emt 0:00:08]} 17. Qg8+ {[%emt 0:03:14]} Bf8 {[%emt 0:04:43]} 18. Rxf6 {[%emt 0:06:16]} Qg7 {[%emt 0:01:35]} 19. Rxf8+ {[%emt 0:00:08]} Qxf8 {[%emt 0:00:49]} 20. Qxh7 {[%emt 0:03:47]} O-O-O {[%emt 0:02:20]} 21. Bh6 {[%emt 0:05:54]} Qf6 {[%emt 0:00:42]} 22. Rf1 {[%emt 0:01:20]} Qxc3 {[%emt 0:00:35]} 23. Bf4 {[%emt 0:00:20]} Qd4+ {[%emt 0:02:40]} 24. Kh1 {[%emt 0:00:26]} Qd7 {[%emt 0:00:18]} 25. Qxd7+ {[%emt 0:00:48]} Kxd7 {[%emt 0:01:33]} 26. Bg3 {[%emt 0:00:10]} Ke7 {[%emt 0:00:10]} 27. Bh4+ {[%emt 0:00:30]} Ke8 {[%emt 0:00:30]} 28. Bxd8 {[%emt 0:00:30]} Kxd8 {[%emt 0:00:30]} 29. h4 {[%emt 0:00:00]} c4 {[%emt 0:01:06]} 30. d4 {[%emt 0:00:20]} Be4 {[%emt 0:00:20]} 31. Rf2 {[%emt 1:31:05]} Ke7 {[%emt 1:30:24]} 32. Kh2 {[%emt 0:00:30]} b5 {[%emt 0:00:29]} 33. g4 {[%emt 0:00:26]} b4 {[%emt 0:01:02]} 34. h5 {[%emt 0:01:59]} a5 {[%emt 0:00:58]} 35. g5 {[%emt 0:01:09]} a4 {[%emt 0:02:20]} 36. g6 c3 37. g7 {[%emt 0:02:34]} Bh7 {[%emt 0:00:33]} 1-0

[Event "GER-chT Youth Countries 2020"]
[Site "Berlin"]
[Date "2020.10.01"]
[Round "3"]
[White "Basovskiy, Jana"]
[Black "Hommer, Jeremy"]
[Result "0-1"]
[ECO "C00"]
[WhiteElo "1760"]
[BlackElo "2246"]
[Annotator "ChessBase"]
[PlyCount "86"]
[EventDate "2020.09.30"]
[EventType "team-tourn"]
[EventRounds "7"]
[EventCountry "GER"]
[SourceTitle "playchess.com"]
[Source "ChessBase"]
[SourceQuality "1"]
[TimeControl "30/5400+30:0"]

1. e4 {[%emt 0:00:00]} e6 {[%emt 0:00:00]} 2. d3 {[%emt 0:00:06]} d5 {[%emt 0:00:00]} 3. Nd2 {[%emt 0:00:05]} Nf6 {[%emt 0:00:00]} 4. c3 {[%emt 0:03:38]} c5 {[%emt 0:02:21]} 5. g3 {[%emt 0:01:55]} Nc6 {[%emt 0:00:58]} 6. Bg2 {[%emt 0:00:33]} Be7 {[%emt 0:00:20]} 7. Ngf3 {[%emt 0:02:40]} b6 {[%emt 0:00:29]} 8. O-O {[%emt 0:05:23]} Bb7 {[%emt 0:00:23]} 9. Qe2 {[%emt 0:03:09]} Qc7 {[%emt 0:02:32]} 10. Re1 {[%emt 0:09:56]} O-O-O {[%emt 0:18:22]} 11. exd5 {[%emt 0:30:24]} exd5 {[%emt 0:09:16]} 12. d4 {[%emt 0:01:24]} Rhe8 {[%emt 0:01:35]} 13. Qd3 {[%emt 0:04:17]} Bd6 {[%emt 0:11:41]} 14. Rxe8 {[%emt 0:05:43]} Rxe8 {[%emt 0:00:10]} 15. Nf1 {[%emt 0:01:25]} cxd4 {[%emt 0:04:28]} 16. cxd4 {[%emt 0:08:21]} Nb4 {[%emt 0:04:04]} 17. Qf5+ Kb8 {[%emt 0:05:29]} 18. Be3 {[%emt 0:04:59]} Nc2 {[%emt 0:09:27]} 19. Rd1 {[%emt 0:02:44]} Nxe3 {[%emt 0:02:06]} 20. Nxe3 {[%emt 0:00:09]} Qe7 {[%emt 0:07:10]} 21. Qd3 {[%emt 0:02:04]} g6 {[%emt 0:00:21]} 22. Rc1 {[%emt 0:00:40]} Ne4 {[%emt 0:00:33]} 23. Qb3 {[%emt 0:04:33]} Qe6 {[%emt 0:01:52]} 24. Nf1 {[%emt 0:04:00]} f5 {[%emt 0:00:47]} 25. N1d2 {[%emt 0:01:15]} Qf6 {[%emt 0:01:53]} 26. Qd3 {[%emt 0:00:46]} h5 {[%emt 0:00:52]} 27. Re1 {[%emt 0:02:03]} Re7 {[%emt 0:02:02]} 28. Nf1 {[%emt 0:00:48]} g5 {[%emt 0:02:10]} 29. Rc1 {[%emt 0:00:15]} f4 {[%emt 0:02:51]} 30. Qd1 {[%emt 0:01:10]} g4 {[%emt 0:02:28]} 31. Ne1 fxg3 {[%emt 1:31:28]} 32. fxg3 {[%emt 1:30:35]} Qf2+ {[%emt 0:00:53]} 33. Kh1 {[%emt 0:00:00]} Ba6 {[%emt 0:00:11]} 34. Nc2 {[%emt 0:01:09]} Bxf1 {[%emt 0:03:25]} 35. Qxf1 {[%emt 0:00:33]} Qd2 {[%emt 0:00:07]} 36. Bxe4 {[%emt 0:00:37]} Rxe4 {[%emt 0:00:16]} 37. Qd1 {[%emt 0:00:29]} Qa5 {[%emt 0:02:02]} 38. a3 {[%emt 0:00:32]} Qb5 {[%emt 0:00:45]} 39. b4 {[%emt 0:00:22]} Qe8 {[%emt 0:00:29]} 40. Qf1 {[%emt 0:00:38]} Re2 {[%emt 0:02:15]} 41. Qf5 {[%emt 0:00:00]} Qe4+ {[%emt 0:00:00]} 42. Qxe4 {[%emt 0:00:00]} dxe4 {[%emt 0:00:00]} 43. Kg1 {[%emt 0:00:00]} h4 {[%emt 0:00:00]} 0-1

[Event "GER-chT Youth Countries 2020"]
[Site "Berlin"]
[Date "2020.10.01"]
[Round "3"]
[White "Hagenbeck-Huebert, Ben"]
[Black "Herrmann, Jakob"]
[Result "1/2-1/2"]
[ECO "E73"]
[WhiteElo "1749"]
[BlackElo "1504"]
[Annotator "NA"]
[PlyCount "132"]
[EventDate "2020.09.30"]
[EventType "team-tourn"]
[EventRounds "7"]
[EventCountry "GER"]
[SourceTitle "playchess.com"]
[Source "ChessBase"]
[SourceQuality "1"]
[TimeControl "30/5400+30:0"]

1. d4 {[%emt 0:00:00]} Nf6 {[%emt 0:00:00]} 2. c4 {[%emt 0:00:00]} g6 {[%emt 0:00:00]} 3. Nc3 {[%emt 0:00:00]} Bg7 {[%emt 0:00:25]} 4. e4 {[%emt 0:00:08]} d6 {[%emt 0:00:08]} 5. Be2 {[%emt 0:00:49]} O-O {[%emt 0:00:57]} 6. Be3 {[%emt 0:00:50]} e5 {[%emt 0:01:28]} 7. d5 {[%emt 0:00:42]} Nbd7 {[%emt 0:03:27]} 8. g4 {[%emt 0:03:03]} Nc5 {[%emt 0:09:30]} 9. f3 {[%emt 0:01:56]} a5 {[%emt 0:05:03]} 10. h4 {[%emt 0:01:19]} h5 {[%emt 0:04:40]} 11. g5 {[%emt 0:01:40]} Nfd7 {[%emt 0:00:18]} 12. Nh3 {[%emt 0:01:48]} Qe7 {[%emt 0:10:57]} 13. Nf2 {[%emt 0:01:59]} Kh7 {[%emt 0:17:50]} 14. Nd3 {[%emt 0:11:06]} Nxd3+ {[%emt 0:03:57]} 15. Qxd3 {[%emt 0:00:17]} Nc5 {[%emt 0:00:39]} 16. Qc2 {[%emt 0:02:26]} Rd8 {[%emt 0:11:11]} 17. b3 {[%emt 0:03:56]} Bd7 {[%emt 0:01:51]} 18. a3 {[%emt 0:02:56]} a4 {[%emt 0:07:00]} 19. b4 {[%emt 0:20:23]} Nb3 {[%emt 0:00:09]} 20. Ra2 {[%emt 0:01:16]} Nd4 {[%emt 0:00:43]} 21. Qd1 {[%emt 0:00:38]} Rf8 {[%emt 0:03:32]} 22. Bd3 {[%emt 0:06:54]} f5 {[%emt 0:01:14]} 23. Rf2 {[%emt 0:07:32]} Qf7 {[%emt 0:03:28]} 24. Rhf1 {[%emt 0:09:29]} fxe4 {[%emt 0:02:33]} 25. fxe4 {[%emt 0:01:05]} Qe7 {[%emt 0:00:20]} 26. Rxf8 {[%emt 0:00:59]} Rxf8 {[%emt 0:00:55]} 27. Rxf8 {[%emt 0:00:08]} Qxf8 {[%emt 0:00:05]} 28. Be2 {[%emt 0:01:22]} Qe8 {[%emt 0:04:35]} 29. Kd2 {[%emt 0:02:57]} c6 {[%emt 0:01:48]} 30. Qf1 {[%emt 0:05:39]} Qe7 {[%emt 0:03:51]} 31. Bd1 {[%emt 1:30:59]} c5 {[%emt 1:31:39]} 32. bxc5 {[%emt 0:01:18]} dxc5 {[%emt 0:00:09]} 33. Bxa4 {[%emt 0:01:24]} Bxa4 {[%emt 0:00:19]} 34. Nxa4 {[%emt 0:00:03]} Nb3+ {[%emt 0:00:09]} 35. Kc3 {[%emt 0:00:34]} Nd4 {[%emt 0:00:20]} 36. Qb1 {[%emt 0:02:04]} Qd7 {[%emt 0:00:52]} 37. Nxc5 {[%emt 0:01:01]} Qh3 {[%emt 0:00:14]} 38. Qd3 {[%emt 0:00:45]} Qc8 {[%emt 0:00:32]} 39. Na4 {[%emt 0:01:32]} Qa8 {[%emt 0:01:17]} 40. Kb4 {[%emt 0:01:44]} b5 {[%emt 0:01:15]} 41. cxb5 {[%emt 0:01:46]} Bf8+ {[%emt 0:00:00]} 42. Nc5 {[%emt 0:00:00]} Bxc5+ {[%emt 0:00:00]} 43. Kxc5 {[%emt 0:00:00]} Qc8+ {[%emt 0:00:00]} 44. Kb4 {[%emt 0:00:00]} Qf8+ {[%emt 0:00:00]} 45. Kc3 {[%emt 0:00:00]} Qxa3+ {[%emt 0:00:00]} 46. Kd2 {[%emt 0:00:00]} Qb2+ {[%emt 0:00:00]} 47. Kd1 {[%emt 0:00:00]} Qa1+ {[%emt 0:00:00]} 48. Bc1 {[%emt 0:00:00]} Qa4+ {[%emt 0:00:00]} 49. Ke1 {[%emt 0:00:00]} Qxb5 {[%emt 0:00:00]} 50. Qxb5 {[%emt 0:00:00]} Nxb5 {[%emt 0:00:00]} 51. Bb2 {[%emt 0:00:00]} Nd6 {[%emt 0:00:00]} 52. Bxe5 {[%emt 0:00:00]} Nxe4 {[%emt 0:00:00]} 53. d6 {[%emt 0:00:00]} Nc5 {[%emt 0:00:00]} 54. Kd2 {[%emt 0:00:00]} Kg8 {[%emt 0:00:00]} 55. Ke3 {[%emt 0:00:00]} Kf7 {[%emt 0:00:00]} 56. Kd4 {[%emt 0:00:00]} Nd7 {[%emt 0:00:00]} 57. Kd5 {[%emt 0:00:00]} Ke8 {[%emt 0:00:00]} 58. Ke6 {[%emt 0:00:00]} Nf8+ {[%emt 0:00:00]} 59. Kf6 {[%emt 0:00:00]} Nd7+ {[%emt 0:00:00]} 60. Kxg6 {[%emt 0:00:00]} Nxe5+ {[%emt 0:00:00]} 61. Kxh5 {[%emt 1:13:42]} Nf7 {[%emt 1:31:13]} 62. g6 {[%emt 0:00:12]} Nxd6 {[%emt 0:00:17]} 63. Kh6 {[%emt 0:00:55]} Kf8 {[%emt 0:02:10]} 64. Kh7 {[%emt 0:00:16]} Ne8 {[%emt 0:00:08]} 65. h5 {[%emt 0:00:26]} Nf6+ {[%emt 0:00:06]} 66. Kh6 {[%emt 0:00:22]} Nxh5 {[%emt 0:00:28]} 1/2-1/2

[Event "GER-chT Youth Countries 2020"]
[Site "Berlin"]
[Date "2020.10.01"]
[Round "3"]
[White "Pohle, Saskia"]
[Black "Avetyan, Manan"]
[Result "1-0"]
[ECO "C44"]
[WhiteElo "1749"]
[BlackElo "1356"]
[Annotator "NA"]
[PlyCount "52"]
[EventDate "2020.09.30"]
[EventType "team-tourn"]
[EventRounds "7"]
[EventCountry "GER"]
[SourceTitle "playchess.com"]
[Source "ChessBase"]
[SourceQuality "1"]
[TimeControl "30/5400+30:0"]

1. e4 {[%emt 0:00:00]} e5 {[%emt 0:00:00]} 2. Nf3 {[%emt 0:00:00]} Nc6 {[%emt 0:00:00]} 3. d4 {[%emt 0:00:00]} exd4 {[%emt 0:00:00]} 4. Bc4 {[%emt 0:00:00]} Bc5 {[%emt 0:00:00]} 5. c3 {[%emt 0:00:00]} Nf6 {[%emt 0:00:02]} 6. O-O {[%emt 0:00:07]} Nxe4 {[%emt 0:01:23]} 7. cxd4 {[%emt 0:00:06]} d5 {[%emt 0:07:33]} 8. dxc5 {[%emt 0:00:09]} dxc4 {[%emt 0:00:26]} 9. Qe2 {[%emt 0:00:05]} Qe7 {[%emt 0:06:09]} 10. Qxc4 {[%emt 0:07:45]} Nxc5 {[%emt 0:07:40]} 11. b4 {[%emt 0:05:45]} Ne6 {[%emt 0:23:49]} 12. Ba3 {[%emt 0:08:24]} Qf6 {[%emt 0:05:21]} 13. Nc3 {[%emt 0:02:03]} a6 {[%emt 0:11:34]} 14. Nd5 {[%emt 0:00:35]} Qg6 {[%emt 0:15:21]} 15. Rfe1 {[%emt 0:00:27]} O-O {[%emt 0:01:01]} 16. Ne5 {[%emt 0:01:49]} Nxe5 {[%emt 0:01:23]} 17. Ne7+ {[%emt 0:00:08]} Kh8 {[%emt 0:00:26]} 18. Nxg6+ {[%emt 0:00:13]} Nxg6 {[%emt 0:00:35]} 19. Rad1 {[%emt 0:01:28]} b5 {[%emt 0:05:32]} 20. Qc3 {[%emt 0:02:52]} Nef4 {[%emt 0:02:28]} 21. Bb2 {[%emt 0:02:38]} f6 {[%emt 0:00:57]} 22. Qxc7 {[%emt 0:01:29]} Bf5 {[%emt 0:01:00]} 23. Qc5 {[%emt 0:02:32]} Nh4 {[%emt 0:00:56]} 24. Re7 {[%emt 0:07:03]} Nfxg2 {[%emt 0:02:34]} 25. Qc7 {[%emt 0:01:53]} Rae8 {[%emt 0:01:54]} 26. Rxg7 {[%emt 0:09:21]} Be4 {[%emt 0:02:41]} 1-0

[Event "GER-chT Youth Countries 2020"]
[Site "Berlin"]
[Date "2020.10.01"]
[Round "3"]
[White "Braeutigam, Katerina"]
[Black "Besou, Hussain"]
[Result "1/2-1/2"]
[ECO "A22"]
[WhiteElo "1744"]
[BlackElo "1825"]
[Annotator "NA"]
[PlyCount "172"]
[EventDate "2020.09.30"]
[EventType "team-tourn"]
[EventRounds "7"]
[EventCountry "GER"]
[SourceTitle "playchess.com"]
[Source "ChessBase"]
[SourceQuality "1"]
[TimeControl "30/5400+30:0"]

1. c4 {[%emt 0:00:00]} e5 {[%emt 0:00:00]} 2. g3 {[%emt 0:00:00]} Nf6 {[%emt 0:00:06]} 3. Nc3 {[%emt 0:00:00]} d5 {[%emt 0:00:06]} 4. cxd5 {[%emt 0:00:21]} Nxd5 {[%emt 0:00:08]} 5. Bg2 {[%emt 0:00:12]} Nb6 {[%emt 0:00:10]} 6. Nf3 {[%emt 0:00:42]} Nc6 {[%emt 0:00:11]} 7. O-O {[%emt 0:00:43]} Be7 {[%emt 0:00:12]} 8. b3 {[%emt 0:01:50]} O-O {[%emt 0:00:31]} 9. Bb2 {[%emt 0:00:24]} Be6 {[%emt 0:00:23]} 10. Rc1 {[%emt 0:04:17]} f6 {[%emt 0:01:44]} 11. d3 {[%emt 0:03:50]} Qd7 {[%emt 0:00:42]} 12. Ne4 {[%emt 0:02:58]} Rad8 {[%emt 0:01:38]} 13. Qc2 {[%emt 0:06:31]} Bh3 {[%emt 0:01:07]} 14. Nc5 {[%emt 0:02:12]} Bxc5 {[%emt 0:00:07]} 15. Qxc5 {[%emt 0:00:15]} Bxg2 {[%emt 0:00:08]} 16. Kxg2 {[%emt 0:00:12]} Qd5 {[%emt 0:01:16]} 17. Ba3 {[%emt 0:04:32]} Rfe8 {[%emt 0:00:47]} 18. Rc2 {[%emt 0:07:50]} a5 {[%emt 0:01:26]} 19. Rfc1 {[%emt 0:05:21]} e4 {[%emt 0:04:09]} 20. Qxd5+ {[%emt 0:04:09]} Rxd5 {[%emt 0:00:33]} 21. dxe4 {[%emt 0:00:50]} Rxe4 {[%emt 0:00:06]} 22. e3 {[%emt 0:02:01]} h6 {[%emt 0:02:01]} 23. Bc5 {[%emt 0:13:16]} Nd7 {[%emt 0:00:49]} 24. Kf1 {[%emt 0:03:03]} Kf7 {[%emt 0:00:34]} 25. Nd4 {[%emt 0:04:25]} Nxd4 {[%emt 0:00:20]} 26. Bxd4 {[%emt 0:00:33]} c6 {[%emt 0:00:14]} 27. f3 {[%emt 0:05:25]} Re8 {[%emt 0:00:07]} 28. Rc4 {[%emt 0:06:23]} f5 {[%emt 0:03:10]} 29. R1c2 {[%emt 0:02:57]} g5 {[%emt 0:10:27]} 30. Kf2 {[%emt 0:07:15]} Re6 {[%emt 0:09:30]} 31. a3 {[%emt 1:34:33]} Rb5 {[%emt 1:34:16]} 32. b4 {[%emt 0:01:16]} Ne5 {[%emt 0:02:30]} 33. Bxe5 {[%emt 0:00:41]} Rbxe5 {[%emt 0:01:47]} 34. R2c3 {[%emt 0:00:24]} axb4 35. axb4 {[%emt 0:01:10]} Rd5 {[%emt 0:06:39]} 36. Rc2 {[%emt 0:04:13]} Rd3 {[%emt 0:00:49]} 37. Re2 {[%emt 0:00:55]} Kf6 {[%emt 0:01:32]} 38. e4 {[%emt 0:01:31]} fxe4 {[%emt 0:01:56]} 39. Rcxe4 {[%emt 0:00:13]} Rxe4 {[%emt 0:00:08]} 40. Rxe4 {[%emt 0:00:15]} Rd2+ {[%emt 0:00:05]} 41. Re2 {[%emt 0:01:41]} Rd4 {[%emt 0:00:06]} 42. Rb2 {[%emt 0:00:00]} Ke5 {[%emt 0:00:00]} 43. Ke3 {[%emt 0:00:00]} b6 {[%emt 0:00:00]} 44. Rc2 {[%emt 0:00:00]} Rxb4 {[%emt 0:00:00]} 45. Rxc6 {[%emt 0:00:00]} Rb3+ {[%emt 0:00:00]} 46. Kf2 {[%emt 0:00:00]} Rb2+ {[%emt 0:00:00]} 47. Kg1 {[%emt 0:00:00]} h5 {[%emt 0:00:00]} 48. Rh6 {[%emt 0:00:00]} Kf5 49. Rxh5 {[%emt 0:00:00]} Rb1+ {[%emt 0:00:00]} 50. Kg2 {[%emt 0:00:00]} Rb2+ {[%emt 0:00:00]} 51. Kh3 {[%emt 0:00:00]} Kg6 {[%emt 0:00:00]} 52. Rh8 {[%emt 0:00:00]} b5 {[%emt 0:00:00]} 53. Rf8 {[%emt 0:00:00]} Kg7 {[%emt 0:00:00]} 54. Rb8 {[%emt 0:00:00]} Kg6 {[%emt 0:00:00]} 55. Kg4 {[%emt 0:00:00]} Rb4+ {[%emt 0:00:00]} 56. f4 {[%emt 0:00:00]} gxf4 {[%emt 0:00:00]} 57. gxf4 {[%emt 0:00:00]} Rb2 {[%emt 0:00:00]} 58. Rb6+ {[%emt 0:00:00]} Kg7 {[%emt 0:00:00]} 59. h4 {[%emt 0:00:00]} Rg2+ {[%emt 0:00:00]} 60. Kf3 {[%emt 0:00:00]} Rh2 {[%emt 0:00:00]} 61. Rxb5 {[%emt 1:26:51]} Rxh4 {[%emt 1:05:39]} 62. Rb6 {[%emt 0:00:28]} Rh5 {[%emt 0:00:53]} 63. Ke4 {[%emt 0:02:16]} Kf7 {[%emt 0:00:16]} 64. Rb7+ {[%emt 0:00:35]} Kf6 {[%emt 0:00:07]} 65. Rb6+ {[%emt 0:00:40]} Kf7 {[%emt 0:00:09]} 66. Kf3 {[%emt 0:04:24]} Ra5 {[%emt 0:00:07]} 67. Kg4 {[%emt 0:00:07]} Rc5 {[%emt 0:00:08]} 68. Rb7+ {[%emt 0:01:09]} Kf6 {[%emt 0:00:15]} 69. Rb6+ {[%emt 0:01:28]} Kf7 {[%emt 0:00:31]} 70. Rb1 {[%emt 0:00:53]} Kf6 {[%emt 0:00:07]} 71. Rh1 {[%emt 0:00:55]} Kg6 {[%emt 0:00:05]} 72. Rh8 {[%emt 0:00:57]} Kf6 {[%emt 0:00:07]} 73. Rf8+ {[%emt 0:01:20]} Kg6 {[%emt 0:00:13]} 74. Re8 {[%emt 0:01:23]} Kf6 {[%emt 0:00:07]} 75. Re4 {[%emt 0:00:53]} Ra5 {[%emt 0:00:40]} 76. Rb4 {[%emt 0:00:36]} Rc5 {[%emt 0:00:10]} 77. f5 {[%emt 0:00:29]} Rc1 {[%emt 0:00:12]} 78. Rb6+ {[%emt 0:00:20]} Kf7 {[%emt 0:00:05]} 79. Rb4 {[%emt 0:01:17]} Kf6 {[%emt 0:00:24]} 80. Rb6+ {[%emt 0:00:52]} Kf7 {[%emt 0:00:04]} 81. Kg5 {[%emt 0:01:10]} Rg1+ {[%emt 0:00:07]} 82. Kf4 {[%emt 0:00:15]} Rf1+ {[%emt 0:00:05]} 83. Ke5 {[%emt 0:00:31]} Re1+ {[%emt 0:00:04]} 84. Kd4 {[%emt 0:00:56]} Rf1 {[%emt 0:00:07]} 85. Rb5 {[%emt 0:00:23]} Kf6 {[%emt 0:00:06]} 86. Rb8 {[%emt 0:00:05]} Rxf5 {[%emt 0:00:05]} 1/2-1/2